Cogmind - Beta 13 @@@ ROGUE MODE // 2024.03.31 @ 13:10:14 Player: Delta-Psyco Result: Destroyed by G-34 Mercenary with Small Laser Performance ------------- Evolutions (0) 0 Regions Visited (1) 200 Robots Destroyed (10) 50 Value Destroyed (303) 303 Prototype IDs (0) 0 Alien Tech Used (0) 0 Bonus (0) 0 TOTAL SCORE: 553 Bonus ------- None Cogmind --------- Core Integrity 0/250 Matter 262/300 Energy 96/100 System Corruption 0% Temperature Warning (338) Movement Core (50) Location -10/Materials Parts ------- > --- POWER (1) -------- (None) > --- PROPULSION (2) --- (None) > --- UTILITY (2) ------ Sensor Array > --- WEAPON (2) ------- Small Laser > --- INVENTORY (5) ---- High-capacity Matter Pod (200) Seismic Detector Datajack Peak State ------------ > --- POWER ------------ Light Nuclear Core > --- PROPULSION ------- Aluminum Leg Wheel > --- UTILITY ---------- Sensor Array > --- WEAPON ----------- Light Assault Rifle Light Cannon > --- INVENTORY -------- High-capacity Matter Pod Seismic Detector Small Laser Datajack [Rating: 8] Favorites ----------- Power Light Ion Engine Engine Light Ion Engine Power Core Light Nuclear Core Propulsion Wheel Leg Aluminum Leg Wheel Wheel Utility Sensor Array Device Sensor Array Weapon Light Cannon Energy Gun Medium Laser Ballistic Gun Light Assault Rifle Ballistic Cannon Light Cannon Special Weapon Mining Laser Build | -11 -10 ------- Run | Yrd Mat Slots Evolved . | . . Power . | . . Propulsion . | . . Utility . | . . Weapon . | . . Parts Attached 16 | 5 11 Power 2 | 1 1 Engine 1 | 1 . Core 1 | . 1 Reactor . | . . Propulsion 5 | 2 3 Treads . | . . Leg 2 | . 2 Wheel 3 | 2 1 Hover . | . . Flight . | . . Utility 1 | . 1 Device 1 | . 1 Storage . | . . Processor . | . . Hackware . | . . Protection . | . . Artifact . | . . Weapon 8 | 2 6 Energy Gun 4 | 2 2 Energy Cannon . | . . Ballistic Gun 2 | . 2 Ballistic Cannon 1 | . 1 Launcher . | . . Special Weapon 1 | . 1 Impact Weapon . | . . Slashing Weapon . | . . Piercing Weapon . | . . Special Melee Weapon . | . . Unidentified Prototypes . | . . Parts Lost 10 | . 10 Power 2 | . 2 Propulsion 3 | . 3 Utility . | . . Weapon 5 | . 5 Highest Loss Streak 5 | . 5 To Critical Strikes . | . . Average Slot Usage (%) 62 | . 62 Engine 4 | . 4 Core 1 | . 1 Leg 3 | . 3 Wheel 22 | . 22 Device 5 | . 5 Energy Gun 12 | . 12 Ballistic Gun 4 | . 4 Ballistic Cannon 5 | . 5 Special Weapon 1 | . 1 Naked Turns . | . . Heaviest Build 10 | 7 10 Greatest Support 20 | 20 20 Greatest Overweight (x) . | . . Average Overweight (x) . | . . Largest Inventory Capacity 5 | 5 5 Average Capacity 5 | 5 5 Most Carried 5 | 4 5 Average Carried 3 | 1 3 Final Capacity 5 | 5 5 Final Carried 4 | 4 3 Class Distribution -------------------- 100% | Mutant Dominant Class ---------------- Mutant | -10/Materials Resources | -11 -10 ----------- Run | Yrd Mat Matter Collected 614 | 250 364 Remotely . | . . Salvage Created 367 | 76 291 Parts 19 | 4 15 Haulers Intercepted . | . . Recyclers Shooed . | . . Parts Field Recycled . | . . Retrieved Matter . | . . Parts Self-Destructed . | . . Prevented . | . . Kills | -11 -10 ------- Run | Yrd Mat Combat Hostiles Destroyed 7 | 1 6 Guns 4 | 1 3 Cannons 3 | . 3 Classes Destroyed 3 | 2 1 Tunneler 1 | 1 . Watcher 2 | . 2 Grunt 7 | 1 6 Best Kill Streak 3 | 2 3 Combat Bots Only 2 | 1 2 Max Kills in Single Turn 1 | 1 1 Gunslinging . | . . Exploded . | . . Melee . | . . Uniques/NPCs Destroyed . | . . Combat | -11 -10 -------- Run | Yrd Mat Hostile Shots Fired 105 | 5 100 Missed 26 | 1 25 Damage Taken 1050 | 45 1005 Core 250 | 10 240 Absorbed by Shields . | . . Core Remaining (%) 96 | 96 . Volleys Fired 57 | 4 53 Largest 2 | 2 2 Hottest 135 | 90 135 Shots Fired 102 | 8 94 Gun 82 | 8 74 Cannon 18 | . 18 Launcher . | . . Special 2 | . 2 Kinetic 57 | . 57 Thermal 33 | 4 29 Explosive . | . . Electromagnetic 12 | 4 8 Robot Hit Streak 7 | 3 7 Robot Miss Streak 9 | 2 9 Penetration Max . | . . Secondary Targets . | . . Shots Hit Robots 55 | 5 50 Core Hits 21 | 3 18 Critical Kills . | . . Critical Parts Destroyed . | . . Critical Strikes 5 | . 5 Burn 4 | . 4 Corrupt 1 | . 1 Melee Attacks . | . . Impact . | . . Slashing . | . . Piercing . | . . Sneak Attacks . | . . Combat Hostiles . | . . Follow-up Attacks . | . . Damage Inflicted 780 | 75 705 Guns 600 | 75 525 Cannons 180 | . 180 Explosions . | . . Melee . | . . Ramming . | . . Kinetic 381 | . 381 Thermal 261 | 37 224 Explosive . | . . Electromagnetic 138 | 38 100 Impact . | . . Slashing . | . . Piercing . | . . Highest Corruption . | . . Average Corruption . | . . Corruption Purged . | . . Corruption Blocked . | . . Overload Shots . | . . Overflow Damage . | . . Projectiles . | . . Explosions . | . . Melee . | . . Knockbacks 2 | . 2 Impact . | . . Kinetic 2 | . 2 Secondary . | . . Self-Inflicted Damage . | . . Shots . | . . Rammed . | . . Targets Rammed . | . . Kicked . | . . Crushed . | . . Highest Temperature 332 | 144 332 Average Temperature 134 | 73 142 Received Heat Transfer 603 | 24 579 Effects 2 | . 2 Shutdowns 1 | . 1 Damage (minor) 1 | . 1 Siege Activations . | . . Robots Corrupted . | . . Combat Hostiles . | . . Parts Fried 3 | . 3 Impact Corruptions . | . . Robots Melted . | . . Combat Hostiles . | . . Parts Melted 2 | . 2 Heat Transferred 1014 | 111 903 Parts Sabotaged . | . . Parts Stolen . | . . Parts Stripped . | . . Power Chain Reactions . | . . Alert | -11 -10 ------- Run | Yrd Mat Peak Influence 262 | 40 262 Initial 26 | . 26 Average 93 | 8 108 Maximum Alert Level 1 | . 1 Low Security (%) 89 | 100 87 Level 1 10 | . 12 Level 2 . | . . Level 3 . | . . Level 4 . | . . Level 5 . | . . High Security . | . . Max Security . | . . Squads Dispatched 2 | . 2 Investigation . | . . Extermination . | . . Reinforcement 2 | . 2 Assault . | . . Garrison . | . . Intercept . | . . Searches Triggered . | . . Construction Impeded . | . . Haulers Reinforced . | . . Active Scanning Responses . | . . Cargo Convoy Interrupts . | . . Stealth | -11 -10 --------- Run | Yrd Mat Distress Signals 4 | . 4 Communications Jammed . | . . Distress Signals . | . . Times Spotted 21 | 1 20 Peak Tracking Total 6 | 1 6 Tactical Retreats 1 | . 1 Traps | -11 -10 ------- Run | Yrd Mat Traps Triggered . | . . Indirectly . | . . Trap Hack Attempts . | . . Triggered . | . . Disarmed . | . . Reprogrammed . | . . Reused . | . . Traps Extracted . | . . Installed . | . . Triggered . | . . Machines | -11 -10 ---------- Run | Yrd Mat Machines Disabled . | . . Max in Single Turn . | . . Machines Repaired . | . . Machines Dismantled . | . . Machines Sabotaged . | . . Overloaded Fab Kills . | . . Hacking | -11 -10 --------- Run | Yrd Mat Machines Accessed . | . . Terminals . | . . Fabricators . | . . Repair Stations . | . . Recycling Units . | . . Scanalyzers . | . . Garrison Access . | . . Total Hacks . | . . Successful . | . . Failed . | . . Catastrophic . | . . Database Lockouts . | . . Manual . | . . Terminals . | . . Fabricators . | . . Repair Stations . | . . Recycling Units . | . . Scanalyzers . | . . Garrison Access . | . . Terminal Hacks . | . . Fabricator Hacks . | . . Repair Station Hacks . | . . Recycling Unit Hacks . | . . Scanalyzer . | . . Garrison Access Hacks . | . . Unauthorized Hacks . | . . Terminals . | . . Fabricators . | . . Repair Stations . | . . Recycling Units . | . . Scanalyzers . | . . Garrison Access . | . . Data Cores Recovered . | . . Used . | . . Hacking Detections . | . . Full Trace Events . | . . Feedback Events . | . . Feedback Blocked . | . . Robot Schematics Acquired . | . . Robots Built . | . . Authchips . | . . Time . | . . Total Robot Build Rating . | . . Part Schematics Acquired . | . . Parts Built . | . . Authchips . | . . Time . | . . Total Part Build Rating . | . . Parts Repaired . | . . Time . | . . Parts Recycled . | . . Recycled Matter . | . . Retrieved Matter . | . . Retrieved Components . | . . Parts Scanalyzed . | . . Part Schematics Acquired . | . . Parts Damaged . | . . Bothacking | -11 -10 ------------ Run | Yrd Mat Used RIF Installer . | . . Robots Hacked . | . . Non-combat . | . . Combat . | . . Robot Hacks Applied . | . . Relay Couplers Released . | . . Fabnet Peak Effective % . | . . Robots Rewired . | . . Allies Hacked . | . . Hacks Repelled . | . . Allies | -11 -10 -------- Run | Yrd Mat Total Allies . | . . Largest Group . | . . Highest-Rated Group . | . . Highest-Rated Ally . | . . Total Orders . | . . Ally Attacks . | . . Total Damage . | . . Kills . | . . Allies Corrupted . | . . Allies Melted . | . . Intel | -11 -10 ------- Run | Yrd Mat Robot Analysis Total . | . . Derelict Logs Recovered . | . . Drone Launches . | . . Drone Recoveries . | . . Exploration | -11 -10 ------------- Run | Yrd Mat Turns Passed 513 | 80 433 Spaces Moved 401 | 75 326 Core 18 | 18 . Treads . | . . Legs 5 | . 5 Wheels 378 | 57 321 Hover . | . . Flight . | . . Fastest Speed 50 | 50 80 Average Speed 79 | 72 80 Slowest Speed 120 | 80 120 Overloaded Moves . | . . Propulsion Burnouts . | . . Robots Hopped . | . . Cave-ins Triggered . | . . Exploration Rate (%) 37 | 9 65 Regions Visited 1 Branch Regions . Pre-discovered Areas . | . . Known Exits Taken . | . . Unknown Exits Taken 1 | 1 . Scrap Searched . | . . Spaces Dug . | . . Terrain Destroyed 1 | . 1 Melee . | . . Projectile 1 | . 1 AOE . | . . Terrain Rammed . | . . Walls Destroyed . | . . Machines Disabled . | . . Actions | -11 -10 --------- Run | Yrd Mat Total 497 | 92 405 Wait 1 | . 1 Move 400 | 74 326 Hop . | . . Pick Up 19 | 9 10 Fast Attach . | . . Attach 13 | 5 8 Detach . | . . Swap 3 | . 3 Drop 4 | . 4 Fire 57 | 4 53 Melee . | . . Ram . | . . Kick . | . . Crush . | . . Escape Stasis . | . . Rewire . | . . Trap . | . . Miscellaneous . | . . Route ------- -11/Scrapyard -10/Materials (discovered 2 exits: [*Mat] / [*Min]) History --------- Turn | Location | Event 2 | -11/Scrapyard | Met Revision 17 54 | -11/Scrapyard | Discovered new exit (range 8) 81 | -11/Scrapyard | Entered Materials 271 | -10/Materials | Discovered new exit (range 6) 272 | -10/Materials | Lost 4 parts (1p3w) 334 | -10/Materials | Discovered new exit (range 14) 339 | -10/Materials | Build established: Mutant 490 | -10/Materials | Core integrity fell below 50% 510 | -10/Materials | Core integrity fell below 20% 514 | -10/Materials | Destroyed by G-34 Mercenary with Small Laser Last Messages --------------- Visual Processing Unit fried. Hover Unit fried. W-16 Scout destroyed. G-47 Trooper knocked back. [Achievement: Storm Trooper] The achievement interface (ESC then open Records) offers an effective way to explore all of your earned achievements as well as seek out new goals for future runs. Lgt. Cannon destroyed. G-34 Mercenary destroyed. K-01 Serf collects debris. Aluminum Leg destroyed. R-06 Scavenger collects Lgt. Ion Engine. Power failure, Lgt. Nuclear Core shutdown. Overheating: Aluminum Leg damaged (-26). Lgt. Nuclear Core destroyed. Lgt. Assault Rifle destroyed. Aluminum Leg destroyed. G-34 Mercenary heat damages Ion Engine. Map ----- +----------------------------------------------------+ | | | | | | | | | | | | | | | | | | | | | | | | | | | ?????????????????????????????????????????????????? | | ?????????????????????????????????????????????????? | | ?????????????????????????????????????????????????? | | ?????????????????????????????????????????????????? | | ???????????????#?????????????????????????????????? | | ???????????????# ????????????????????????????????? | | ???????????????#! ???????????????????????????????? | | ???????????????# ??????????????????????????????? | | ????????????????? ??#######????????????????????? | | ??????????#########+### #????????????????????? | | ?????????? ^ g #????????????????????? | | ?????????? ^^% g =%! #????????????????????? | | ?????????? % *o% @ #????????????????????? | | ?????????????????######!%!%%#????????????????????? | | ??????????????########## ##????????????????????? | | ??????????????# #= *#?????????????????????? | | ??????????????# """ #* #?????????????????????? | | ??????????????# """ + a#?????????????????????? | | ??????????????# """ # ! #????????????###??????? | | ??????????????# # % #???????????# #?????? | | ??????????????# """ # #???????????# < #?????? | | ??????????????# """ ### ###########?# #?????? | | ??????????????# """ #?# ##% T #?# #?????? | | ??????????????? #?# ## #?# #?????? | | ???????????????#########?# ## """#?# #?????? | | ?????????????????????????# ## """#?# #?????? | | ??????#################### ## """#?# #?????? | | ??????# ## """#?# #?????? | | ??????+ ## #?# #?????? | | ??????# ## #?# #?????? | | ??????# ## #?# #?????? | | ####+## ####+######## #?????? | | ? ] ####### | | ??? ######### # | | ????? #"""""""# "" # | | ??????# #" "! "# "Y """ """ """ # | | ??????# #" "# "" """ """ """ + ]!! | +----------------------------------------------------+ Best States ------------- Heat Dissipation 25 Energy Generation 14 Energy Capacity 160 Matter Stores 300 Matter Capacity 300 Sight Range 16 Robot Scan Range 14 Terrain Scan Density 10 Evasion (%) 50 Item Schematics ----------------- None Robot Schematics ------------------ None Fabricated ------------ Nothing Alien Tech Used ----------------- None Achievements -------------- Storm Trooper Challenges ------------ None Game ------ Seed SpreadMultitargetingCloak Manual? 0 Play Time 00:13:52 Cumulative 2.4 hours Start 2024.03.31 @ 12:47:15 End 2024.03.31 @ 13:10:14 Sessions 1 Manual Loads 0 Difficulty Rogue Special Mode None Game No. 3 Rogue 3 Adventurer 0 Explorer 0 Win Type - Total 0 Types 0/0/0/0/0/0/0/0/0 Lore% 0 Gallery% 3 Achievement% 3 Wizard Run 0 Options --------- Layout 1 ASCII 0 Keyboard 0 Movement Numpad Keybinds 0 Fullscreen 1 Font 24/Smallcaps Map View 50x35 Zoom Use 0% Tactical HUD 0 Map Filters NONE Filters NONE Steam 1 RUN: 6c90e393-8652-470c-995a-b342ba48dc74